[Event "Slovakia Chess Open 2024"]
[Site "Modra"]
[Date "2024.03.04"]
[Round "7.18"]
[White "Hanzel, Richard"]
[Black "Gecik Jergus"]
[Result "1-0"]
[ECO "D20"]
[WhiteElo "1531"]
[BlackElo "1000"]
[Annotator "NA RC"]
[PlyCount "51"]
[EventDate "2024.02.29"]
[EventType "swiss"]
[EventCountry "SVK"]
[SourceTitle "playchess.com"]
[Source "ChessBase"]
[SourceQuality "1"]
[TimeControl "5400+30"]

1. d4 {[%emt 0:00:02]} d5 {[%emt 0:03:02]} 2. c4 {[%emt 0:00:04]} dxc4 {[%emt 0:00:51]} 3. e3 {[%emt 0:00:05]} Be6 {[%emt 0:01:15]} 4. Nd2 {[%emt 0:01:32]} b5 {[%emt 0:02:44]} 5. a4 {[%emt 0:00:07]} a6 {[%emt 0:00:37]} 6. axb5 {[%emt 0:00:15]} Bd5 {[%emt 0:01:13]} 7. Ngf3 {[%emt 0:00:37]} axb5 {[%emt 0:00:57]} 8. Rxa8 {[%emt 0:00:25]} Bxa8 {[%emt 0:00:30]} 9. b3 {[%emt 0:00:40]} Bd5 {[%emt 0:00:49]} 10. bxc4 {[%emt 0:00:22]} bxc4 {[%emt 0:00:38]} 11. Bxc4 {[%emt 0:00:17]} Bxc4 {[%emt 0:01:15]} 12. Nxc4 {[%emt 0:00:05]} e6 {[%emt 0:01:14]} 13. Qa4+ {[%emt 0:00:14]} c6 {[%emt 0:00:37]} 14. O-O {[%emt 0:00:25]} Nf6 {[%emt 0:01:39]} 15. Nfe5 {[%emt 0:03:18]} Bd6 {[%emt 0:02:33]} 16. Ba3 {[%emt 0:01:56]} Bxe5 {[%emt 0:02:38]} 17. Nxe5 {[%emt 0:00:19]} Nd5 {[%emt 0:02:24]} 18. Qc4 {[%emt 0:03:31]} f6 {[%emt 0:00:35]} 19. Nd3 {[%emt 0:01:24]} g5 {[%emt 0:04:44]} 20. Rb1 {[%emt 0:00:15]} Kf7 {[%emt 0:03:44]} 21. Rb7+ {[%emt 0:01:56]} Nc7 {[%emt 0:01:42]} 22. Qb4 {[%emt 0:02:28]} Kg6 {[%emt 0:01:19]} 23. Qd6 {[%emt 0:01:11]} Nca6 {[%emt 0:01:56]} 24. Qxe6 {[%emt 0:03:51]} Rf8 {[%emt 0:05:57]} 25. Qe4+ {[%emt 0:00:46]} Kh6 {[%emt 0:00:48]} 26. Rxh7# {[%emt 0:00:26]} 1-0

[Event "Slovakia Chess Open 2024"]
[Site "Modra"]
[Date "2024.03.05"]
[Round "8.1"]
[White "Stevik, Patrik"]
[Black "Banas, Kamil"]
[Result "1-0"]
[ECO "D31"]
[WhiteElo "2167"]
[BlackElo "2162"]
[Annotator "RC"]
[PlyCount "55"]
[EventDate "2024.02.29"]
[EventType "swiss"]
[EventCountry "SVK"]
[SourceTitle "playchess.com"]
[Source "ChessBase"]
[SourceQuality "1"]
[TimeControl "5400+30"]

1. d4 {[%emt 0:00:02]} d5 {[%emt 0:01:48]} 2. c4 {[%emt 0:00:06]} e6 {[%emt 0:00:41]} 3. cxd5 {[%emt 0:00:08]} exd5 {[%emt 0:00:07]} 4. Nc3 {[%emt 0:00:04]} c6 {[%emt 0:00:07]} 5. Bf4 {[%emt 0:00:45]} Bd6 {[%emt 0:00:23]} 6. Bxd6 {[%emt 0:00:24]} Qxd6 {[%emt 0:00:01]} 7. e3 {[%emt 0:00:47]} Bf5 {[%emt 0:07:06]} 8. Qb3 {[%emt 0:02:49]} Qe7 {[%emt 0:01:29]} 9. Nge2 {[%emt 0:03:43]} Nf6 {[%emt 0:00:35]} 10. Ng3 {[%emt 0:00:15]} Bg6 {[%emt 0:00:54]} 11. Nce2 {[%emt 0:01:32]} h6 {[%emt 0:06:29]} 12. Nf4 {[%emt 0:01:10]} Bh7 {[%emt 0:00:38]} 13. Bd3 {[%emt 0:00:37]} Bxd3 {[%emt 0:02:17]} 14. Nxd3 {[%emt 0:00:38]} g6 {[%emt 0:01:34]} 15. O-O {[%emt 0:01:25]} Na6 {[%emt 0:02:23]} 16. Rae1 {[%emt 0:02:48]} O-O-O {[%emt 0:07:25]} 17. Qa4 {[%emt 0:04:30]} h5 {[%emt 0:04:06]} 18. Ne5 {[%emt 0:01:18]} Rd6 {[%emt 0:05:28]} 19. Rc1 {[%emt 0:04:04]} Qe8 {[%emt 0:00:25]} 20. Ne2 {[%emt 0:01:42]} Kb8 {[%emt 0:00:57]} 21. Qa3 {[%emt 0:04:07]} Kc7 {[%emt 0:06:17]} 22. b4 {[%emt 0:10:59]} Ng4 {[%emt 0:00:58]} 23. b5 {[%emt 0:01:29]} Nb8 {[%emt 0:00:18]} 24. bxc6 {[%emt 0:00:48]} Nxe5 {[%emt 0:00:17]} 25. dxe5 {[%emt 0:00:37]} Rxc6 {[%emt 0:03:46]} 26. Nd4 {[%emt 0:05:58]} Qxe5 {[%emt 0:03:46]} 27. Nxc6 {[%emt 0:00:28]} Nxc6 {[%emt 0:00:14]} 28. Qxa7 {[%emt 0:00:11]} 1-0

[Event "Slovakia Chess Open 2024"]
[Site "Modra"]
[Date "2024.03.05"]
[Round "8.2"]
[White "Oruzinsky, Juraj"]
[Black "Krivoborodov, Egor"]
[Result "0-1"]
[ECO "B22"]
[WhiteElo "2160"]
[BlackElo "2555"]
[Annotator "RC"]
[PlyCount "128"]
[EventDate "2024.02.29"]
[EventType "swiss"]
[EventCountry "SVK"]
[SourceTitle "playchess.com"]
[Source "ChessBase"]
[SourceQuality "1"]
[TimeControl "5400+30"]

1. e4 {[%emt 0:00:07]} c5 {[%emt 0:08:12]} 2. c3 {[%emt 0:00:05]} d5 {[%emt 0:00:27]} 3. exd5 {[%emt 0:00:06]} Nf6 {[%emt 0:00:03]} 4. Qa4+ {[%emt 0:00:40]} Nbd7 {[%emt 0:00:10]} 5. d4 {[%emt 0:07:34]} Nxd5 {[%emt 0:07:17]} 6. dxc5 {[%emt 0:01:47]} e6 {[%emt 0:10:28]} 7. c4 {[%emt 0:06:44]} Nc7 {[%emt 0:06:37]} 8. Be3 {[%emt 0:11:04]} Na6 {[%emt 0:01:05]} 9. Nc3 {[%emt 0:08:25]} Bxc5 {[%emt 0:00:30]} 10. Bxc5 {[%emt 0:02:57]} Naxc5 {[%emt 0:00:18]} 11. Qc2 {[%emt 0:00:15]} O-O {[%emt 0:14:29]} 12. b4 {[%emt 0:03:50]} Na6 {[%emt 0:00:58]} 13. a3 {[%emt 0:00:05]} Nc7 {[%emt 0:03:22]} 14. Bd3 {[%emt 0:01:37]} a5 {[%emt 0:22:19]} 15. Rd1 {[%emt 0:11:52]} f5 {[%emt 0:05:12]} 16. Nf3 {[%emt 0:05:31]} axb4 {[%emt 0:00:05]} 17. axb4 {[%emt 0:00:06]} b6 {[%emt 0:00:12]} 18. O-O {[%emt 0:02:50]} Bb7 {[%emt 0:00:10]} 19. Qe2 {[%emt 0:02:32]} Qf6 {[%emt 0:14:48]} 20. Nb5 {[%emt 0:09:59]} Nxb5 {[%emt 0:00:22]} 21. cxb5 {[%emt 0:00:19]} Bxf3 {[%emt 0:01:27]} 22. Qxf3 {[%emt 0:00:09]} Ne5 {[%emt 0:00:46]} 23. Qe2 {[%emt 0:04:52]} Rfd8 {[%emt 0:00:08]} 24. Bc4 {[%emt 0:01:45]} Nxc4 {[%emt 0:01:33]} 25. Qxc4 {[%emt 0:00:12]} h6 {[%emt 0:00:12]} 26. Rxd8+ {[%emt 0:03:13]} Rxd8 {[%emt 0:00:03]} 27. Re1 {[%emt 0:00:06]} Kh7 {[%emt 0:01:43]} 28. h3 {[%emt 0:00:13]} e5 {[%emt 0:00:08]} 29. Qc7 {[%emt 0:10:59]} Rd5 {[%emt 0:00:45]} 30. Rc1 {[%emt 0:00:48]} e4 {[%emt 0:00:28]} 31. Rc6 {[%emt 0:01:11]} Rd1+ {[%emt 0:00:13]} 32. Kh2 {[%emt 0:00:05]} Qa1 {[%emt 0:00:02]} 33. Qf4 {[%emt 0:01:14]} Rd5 {[%emt 0:01:45]} 34. Rxb6 {[%emt 0:00:18]} Qe5 {[%emt 0:00:40]} 35. Qxe5 {[%emt 0:00:28]} Rxe5 {[%emt 0:00:31]} 36. g3 {[%emt 0:01:44]} Rd5 {[%emt 0:00:00]} 37. h4 {[%emt 0:00:32]} Rd4 {[%emt 0:00:50]} 38. h5 {[%emt 0:01:04]} Kg8 {[%emt 0:00:38]} 39. Rc6 {[%emt 0:00:40]} Kf7 {[%emt 0:00:15]} 40. Rc7+ {[%emt 0:00:29]} Kf6 {[%emt 0:00:03]} 41. Rc6+ {[%emt 0:00:13]} Kg5 {[%emt 0:00:35]} 42. Rg6+ {[%emt 0:00:42]} Kxh5 {[%emt 0:00:30]} 43. Rxg7 {[%emt 0:00:10]} Rxb4 {[%emt 0:00:00]} 44. Rb7 {[%emt 0:01:03]} Rb2 {[%emt 0:00:00]} 45. Kh3 {[%emt 0:01:27]} Rxf2 {[%emt 0:00:00]} 46. b6 {[%emt 0:00:25]} Rb2 {[%emt 0:02:32]} 47. Rb8 {[%emt 0:00:53]} Kg6 {[%emt 0:00:32]} 48. g4 {[%emt 0:00:19]} Rb3+ {[%emt 0:00:24]} 49. Kg2 {[%emt 0:00:26]} fxg4 {[%emt 0:00:17]} 50. b7 {[%emt 0:00:23]} Kh5 {[%emt 0:00:01]} 51. Kf2 {[%emt 0:00:25]} Kh4 {[%emt 0:00:27]} 52. Rh8 {[%emt 0:00:19]} Rb2+ {[%emt 0:00:19]} 53. Kg1 {[%emt 0:00:37]} Rxb7 {[%emt 0:00:04]} 54. Rxh6+ {[%emt 0:00:09]} Kg3 {[%emt 0:00:01]} 55. Kf1 {[%emt 0:00:21]} Rb1+ {[%emt 0:00:34]} 56. Ke2 {[%emt 0:00:05]} Kg2 {[%emt 0:00:03]} 57. Ke3 {[%emt 0:00:31]} Rf1 {[%emt 0:00:14]} 58. Rg6 {[%emt 0:00:48]} g3 {[%emt 0:00:02]} 59. Rg8 {[%emt 0:00:14]} Kh2 {[%emt 0:00:10]} 60. Rh8+ {[%emt 0:00:14]} Kg1 {[%emt 0:00:12]} 61. Ke2 {[%emt 0:00:16]} Rf2+ {[%emt 0:01:19]} 62. Ke1 {[%emt 0:02:26]} Rh2 {[%emt 0:00:09]} 63. Rg8 {[%emt 0:00:27]} g2 {[%emt 0:00:02]} 64. Ke2 {[%emt 0:00:37]} Kh1 {[%emt 0:00:08]} 0-1

[Event "Slovakia Chess Open 2024"]
[Site "Modra"]
[Date "2024.03.05"]
[Round "8.3"]
[White "Smetana, Peter"]
[Black "Bochnicka, Vladimir"]
[Result "0-1"]
[ECO "B30"]
[WhiteElo "1993"]
[BlackElo "2413"]
[Annotator "ChessBase"]
[PlyCount "120"]
[EventDate "2024.02.29"]
[EventType "swiss"]
[EventCountry "SVK"]
[SourceTitle "playchess.com"]
[Source "ChessBase"]
[SourceQuality "1"]
[TimeControl "5400+30"]

1. e4 {[%emt 0:00:03]} c5 {[%emt 0:00:29]} 2. Nf3 {[%emt 0:00:13]} Nc6 {[%emt 0:00:10]} 3. Nc3 {[%emt 0:00:05]} e5 {[%emt 0:00:11]} 4. Bc4 {[%emt 0:00:14]} Be7 {[%emt 0:00:10]} 5. d3 {[%emt 0:00:13]} d6 {[%emt 0:00:14]} 6. O-O {[%emt 0:00:15]} Nf6 {[%emt 0:00:19]} 7. Ng5 {[%emt 0:00:28]} O-O {[%emt 0:00:22]} 8. f4 {[%emt 0:00:23]} Bg4 {[%emt 0:01:08]} 9. Qe1 {[%emt 0:01:23]} exf4 {[%emt 0:09:34]} 10. Rxf4 {[%emt 0:09:25]} Ne5 {[%emt 0:02:58]} 11. h3 {[%emt 0:10:06]} Bh5 {[%emt 0:20:13]} 12. Rf1 {[%emt 0:22:27]} h6 {[%emt 0:18:01]} 13. Nf3 {[%emt 0:01:22]} Bxf3 {[%emt 0:00:45]} 14. gxf3 {[%emt 0:00:13]} Nh5 {[%emt 0:07:01]} 15. f4 {[%emt 0:10:29]} Nxc4 {[%emt 0:00:27]} 16. dxc4 {[%emt 0:00:04]} Bh4 {[%emt 0:00:29]} 17. Qd1 {[%emt 0:00:27]} Ng3 {[%emt 0:00:23]} 18. Rf3 {[%emt 0:00:42]} f5 {[%emt 0:00:47]} 19. Qd5+ {[%emt 0:09:49]} Kh8 {[%emt 0:00:13]} 20. Be3 {[%emt 0:00:31]} fxe4 {[%emt 0:11:18]} 21. Nxe4 {[%emt 0:00:36]} Nxe4 {[%emt 0:00:13]} 22. Qxe4 {[%emt 0:00:23]} Qf6 {[%emt 0:00:19]} 23. c3 {[%emt 0:02:36]} Rae8 {[%emt 0:10:16]} 24. Qd3 {[%emt 0:02:42]} Re6 {[%emt 0:02:57]} 25. Raf1 {[%emt 0:05:06]} Rfe8 {[%emt 0:00:51]} 26. Bf2 {[%emt 0:00:58]} Bxf2+ {[%emt 0:05:04]} 27. R1xf2 {[%emt 0:01:23]} Re1+ {[%emt 0:00:19]} 28. Rf1 {[%emt 0:02:00]} Qh4 {[%emt 0:00:06]} 29. Rxe1 {[%emt 0:04:15]} Rxe1+ {[%emt 0:00:53]} 30. Rf1 {[%emt 0:02:13]} Re6 {[%emt 0:00:49]} 31. Kg2 {[%emt 0:01:16]} Qe7 {[%emt 0:00:51]} 32. Rf2 {[%emt 0:05:08]} b6 {[%emt 0:02:24]} 33. Qf5 {[%emt 0:02:46]} Qb7+ {[%emt 0:03:12]} 34. Qd5 {[%emt 0:00:56]} Qxd5+ {[%emt 0:02:27]} 35. cxd5 {[%emt 0:00:08]} Re1 {[%emt 0:00:05]} 36. Kf3 {[%emt 0:02:34]} Kh7 {[%emt 0:00:32]} 37. c4 {[%emt 0:00:28]} Kg6 {[%emt 0:01:34]} 38. Rg2+ {[%emt 0:02:36]} Kf6 {[%emt 0:00:30]} 39. b3 {[%emt 0:00:48]} Rh1 {[%emt 0:00:31]} 40. Kg4 {[%emt 0:00:12]} Re1 {[%emt 0:00:40]} 41. Kf3 {[%emt 0:00:47]} Rc1 {[%emt 0:00:32]} 42. Re2 {[%emt 0:00:46]} Kf5 {[%emt 0:00:04]} 43. Kg3 {[%emt 0:01:42]} Rc3+ {[%emt 0:00:09]} 44. Kg2 {[%emt 0:00:35]} Kxf4 {[%emt 0:00:19]} 45. Rf2+ {[%emt 0:00:28]} Ke5 {[%emt 0:01:06]} 46. Re2+ {[%emt 0:00:18]} Kd4 {[%emt 0:00:38]} 47. Rf2 {[%emt 0:00:52]} a5 {[%emt 0:00:14]} 48. Re2 {[%emt 0:00:28]} Re3 {[%emt 0:00:11]} 49. Rf2 {[%emt 0:00:12]} Kd3 {[%emt 0:00:17]} 50. Rf7 {[%emt 0:00:10]} Re2+ {[%emt 0:00:14]} 51. Kg3 {[%emt 0:00:03]} Rxa2 {[%emt 0:00:16]} 52. Rb7 {[%emt 0:00:05]} a4 {[%emt 0:00:41]} 53. bxa4 {[%emt 0:00:53]} Kxc4 {[%emt 0:00:06]} 54. Rxb6 {[%emt 0:00:12]} Kxd5 {[%emt 0:00:06]} 55. Ra6 {[%emt 0:00:33]} c4 {[%emt 0:00:08]} 56. Ra8 {[%emt 0:00:40]} c3 {[%emt 0:00:16]} 57. Rc8 {[%emt 0:00:17]} Kd4 {[%emt 0:00:09]} 58. Kg4 {[%emt 0:00:17]} c2 {[%emt 0:00:19]} 59. Kh5 {[%emt 0:00:10]} Kd3 {[%emt 0:00:07]} 60. Kg6 {[%emt 0:00:20]} Rxa4 {[%emt 0:00:22]} 0-1

[Event "Slovakia Chess Open 2024"]
[Site "Modra"]
[Date "2024.03.05"]
[Round "8.4"]
[White "Novomeska, Karin"]
[Black "Melih, Mario"]
[Result "0-1"]
[ECO "E90"]
[WhiteElo "1929"]
[BlackElo "1930"]
[Annotator "ChessBase"]
[PlyCount "96"]
[EventDate "2024.02.29"]
[EventType "swiss"]
[EventCountry "SVK"]
[SourceTitle "playchess.com"]
[Source "ChessBase"]
[SourceQuality "1"]
[TimeControl "5400+30"]

1. d4 {[%emt 0:00:03]} Nf6 {[%emt 0:00:15]} 2. c4 {[%emt 0:00:08]} g6 {[%emt 0:00:11]} 3. Nc3 {[%emt 0:00:06]} Bg7 {[%emt 0:00:11]} 4. e4 {[%emt 0:00:06]} d6 {[%emt 0:00:12]} 5. h3 {[%emt 0:00:09]} O-O {[%emt 0:00:13]} 6. Nf3 {[%emt 0:00:18]} e5 {[%emt 0:01:03]} 7. d5 {[%emt 0:00:19]} Nfd7 {[%emt 0:01:06]} 8. g4 {[%emt 0:02:58]} a5 {[%emt 0:00:11]} 9. Be3 {[%emt 0:13:40]} Na6 {[%emt 0:01:21]} 10. Nd2 {[%emt 0:01:16]} Ndc5 {[%emt 0:02:57]} 11. a3 {[%emt 0:19:08]} Bd7 {[%emt 0:05:36]} 12. h4 {[%emt 0:02:24]} f5 {[%emt 0:25:36]} 13. gxf5 {[%emt 0:28:39]} gxf5 {[%emt 0:00:10]} 14. f3 {[%emt 0:06:48]} Qf6 {[%emt 0:06:23]} 15. Be2 {[%emt 0:05:33]} Bh6 {[%emt 0:02:38]} 16. Rg1+ {[%emt 0:07:58]} Kh8 {[%emt 0:00:37]} 17. Bg5 {[%emt 0:00:27]} Qg6 {[%emt 0:11:35]} 18. Qc2 {[%emt 0:00:43]} Bxg5 {[%emt 0:11:26]} 19. hxg5 {[%emt 0:00:24]} Qh5 {[%emt 0:04:48]} 20. O-O-O {[%emt 0:03:03]} f4 {[%emt 0:00:22]} 21. g6 {[%emt 0:01:27]} Rg8 {[%emt 0:01:53]} 22. gxh7 {[%emt 0:00:33]} Rg7 {[%emt 0:04:21]} 23. Rxg7 {[%emt 0:00:59]} Kxg7 {[%emt 0:00:04]} 24. Rg1+ {[%emt 0:00:18]} Kf7 {[%emt 0:00:54]} 25. Qd1 {[%emt 0:00:46]} Rh8 {[%emt 0:01:20]} 26. Rh1 {[%emt 0:01:37]} Qg6 {[%emt 0:00:14]} 27. Qf1 {[%emt 0:00:48]} Rxh7 {[%emt 0:03:45]} 28. Rg1 {[%emt 0:01:05]} Qh6 {[%emt 0:01:04]} 29. Qg2 {[%emt 0:00:12]} Rg7 {[%emt 0:00:28]} 30. Qxg7+ {[%emt 0:00:09]} Qxg7 {[%emt 0:00:14]} 31. Rxg7+ {[%emt 0:00:04]} Kxg7 {[%emt 0:00:07]} 32. Kc2 {[%emt 0:00:42]} Kh6 {[%emt 0:00:39]} 33. Nb3 {[%emt 0:01:26]} Nxb3 {[%emt 0:00:59]} 34. Kxb3 {[%emt 0:00:02]} Nc5+ {[%emt 0:00:12]} 35. Kc2 {[%emt 0:01:01]} Kg5 {[%emt 0:00:56]} 36. b4 {[%emt 0:00:50]} axb4 {[%emt 0:00:18]} 37. axb4 {[%emt 0:00:47]} Na6 {[%emt 0:01:30]} 38. Kb3 {[%emt 0:00:34]} Kh4 {[%emt 0:00:46]} 39. Ka3 {[%emt 0:01:50]} Kg3 {[%emt 0:01:00]} 40. b5 {[%emt 0:00:35]} Nc5 {[%emt 0:00:28]} 41. Kb2 {[%emt 0:00:11]} b6 {[%emt 0:02:28]} 42. Kc2 {[%emt 0:00:47]} Bh3 {[%emt 0:00:18]} 43. Nb1 {[%emt 0:00:23]} Kf2 {[%emt 0:01:22]} 44. Bd1 {[%emt 0:00:26]} Bg2 {[%emt 0:01:06]} 45. Nd2 {[%emt 0:00:21]} Ke3 {[%emt 0:01:00]} 46. Kc3 {[%emt 0:00:52]} Nd3 {[%emt 0:00:45]} 47. Nb1 {[%emt 0:00:16]} Ne1 {[%emt 0:00:17]} 48. Na3 {[%emt 0:00:09]} Bxf3 {[%emt 0:00:51]} 0-1

[Event "Slovakia Chess Open 2024"]
[Site "Modra"]
[Date "2024.03.05"]
[Round "8.5"]
[White "Palka, Miroslav"]
[Black "Shirinyan, Daniel"]
[Result "1/2-1/2"]
[ECO "A18"]
[WhiteElo "1780"]
[BlackElo "2177"]
[Annotator "RC"]
[PlyCount "102"]
[EventDate "2024.02.29"]
[EventType "swiss"]
[EventCountry "SVK"]
[SourceTitle "playchess.com"]
[Source "ChessBase"]
[SourceQuality "1"]
[TimeControl "5400+30"]

1. c4 {[%emt 0:00:11]} Nf6 {[%emt 0:00:03]} 2. Nc3 {[%emt 0:00:08]} e6 {[%emt 0:00:03]} 3. e4 {[%emt 0:00:24]} d5 {[%emt 0:00:04]} 4. e5 {[%emt 0:00:16]} d4 {[%emt 0:00:03]} 5. exf6 {[%emt 0:00:31]} dxc3 {[%emt 0:00:06]} 6. bxc3 {[%emt 0:00:40]} Qxf6 {[%emt 0:01:27]} 7. d4 {[%emt 0:00:25]} Nc6 {[%emt 0:00:44]} 8. Nf3 {[%emt 0:00:17]} e5 {[%emt 0:01:13]} 9. Bg5 {[%emt 0:02:07]} Qg6 {[%emt 0:00:13]} 10. dxe5 {[%emt 0:05:30]} Bg4 {[%emt 0:08:07]} 11. Bf4 {[%emt 0:11:33]} Qe4+ {[%emt 0:12:31]} 12. Be3 {[%emt 0:01:14]} Rd8 {[%emt 0:01:17]} 13. Nd2 {[%emt 0:06:22]} Qxe3+ {[%emt 0:01:46]} 14. fxe3 {[%emt 0:00:28]} Bxd1 {[%emt 0:00:02]} 15. Rxd1 {[%emt 0:00:52]} Bc5 {[%emt 0:01:39]} 16. Nf3 {[%emt 0:01:46]} Rxd1+ {[%emt 0:02:51]} 17. Kxd1 {[%emt 0:00:09]} Bxe3 {[%emt 0:00:10]} 18. Bd3 {[%emt 0:01:12]} Ke7 {[%emt 0:02:49]} 19. Re1 {[%emt 0:00:36]} Bc5 {[%emt 0:01:25]} 20. Kc2 {[%emt 0:01:23]} g6 {[%emt 0:01:00]} 21. Rb1 {[%emt 0:08:50]} b6 {[%emt 0:01:33]} 22. Re1 {[%emt 0:02:06]} Re8 {[%emt 0:07:09]} 23. Be4 {[%emt 0:03:05]} Nd8 {[%emt 0:00:29]} 24. Bd3 {[%emt 0:02:13]} Ne6 {[%emt 0:05:54]} 25. g3 {[%emt 0:02:55]} Rd8 {[%emt 0:09:40]} 26. Be4 {[%emt 0:01:12]} h6 {[%emt 0:00:19]} 27. Rd1 {[%emt 0:01:00]} Rxd1 {[%emt 0:03:27]} 28. Kxd1 {[%emt 0:00:08]} g5 {[%emt 0:02:07]} 29. Ke2 {[%emt 0:04:58]} g4 {[%emt 0:01:08]} 30. Nh4 {[%emt 0:00:54]} Ng5 {[%emt 0:00:13]} 31. Bd5 {[%emt 0:02:32]} h5 {[%emt 0:03:47]} 32. Nf5+ {[%emt 0:00:54]} Kf8 {[%emt 0:00:27]} 33. Nd4 {[%emt 0:00:53]} a6 {[%emt 0:03:46]} 34. a4 {[%emt 0:02:29]} Ba3 {[%emt 0:01:05]} 35. e6 {[%emt 0:05:11]} c5 {[%emt 0:04:32]} 36. Nc2 {[%emt 0:05:04]} Bb2 {[%emt 0:09:49]} 37. exf7 {[%emt 0:00:11]} Bxc3 {[%emt 0:00:20]} 38. Kd3 {[%emt 0:03:59]} Be5 {[%emt 0:00:51]} 39. Ne3 {[%emt 0:00:42]} Bd4 {[%emt 0:00:46]} 40. Ng2 {[%emt 0:02:55]} Nxf7 {[%emt 0:06:39]} 41. Nf4 {[%emt 0:03:07]} Ne5+ {[%emt 0:04:30]} 42. Ke4 {[%emt 0:00:17]} Nf3 {[%emt 0:01:02]} 43. Nxh5 {[%emt 0:01:34]} Nxh2 {[%emt 0:00:19]} 44. Nf4 {[%emt 0:01:16]} Ke7 {[%emt 0:00:40]} 45. Bb7 {[%emt 0:01:32]} Nf1 {[%emt 0:02:21]} 46. Nd5+ {[%emt 0:00:43]} Kd6 {[%emt 0:00:31]} 47. Kf4 {[%emt 0:02:00]} Nh2 {[%emt 0:00:22]} 48. Bxa6 {[%emt 0:01:24]} Be5+ {[%emt 0:00:54]} 49. Kf5 {[%emt 0:02:19]} Bxg3 {[%emt 0:00:28]} 50. Nf6 {[%emt 0:01:43]} Be1 {[%emt 0:00:43]} 51. Nxg4 {[%emt 0:00:29]} Nxg4 {[%emt 0:00:05]} 1/2-1/2

[Event "Slovakia Chess Open 2024"]
[Site "Modra"]
[Date "2024.03.05"]
[Round "8.6"]
[White "Galla, Richard"]
[Black "Petrik, Matus"]
[Result "1-0"]
[ECO "A66"]
[WhiteElo "1975"]
[BlackElo "1812"]
[Annotator "ChessBase"]
[PlyCount "97"]
[EventDate "2024.02.29"]
[EventType "swiss"]
[EventCountry "SVK"]
[SourceTitle "playchess.com"]
[Source "ChessBase"]
[SourceQuality "1"]
[TimeControl "5400+30"]

1. d4 {[%emt 0:00:03]} Nf6 {[%emt 0:17:13]} 2. c4 {[%emt 0:00:13]} c5 {[%emt 0:00:05]} 3. d5 {[%emt 0:00:04]} e6 {[%emt 0:00:04]} 4. Nc3 {[%emt 0:00:05]} exd5 {[%emt 0:00:05]} 5. cxd5 {[%emt 0:00:06]} d6 {[%emt 0:00:10]} 6. e4 {[%emt 0:00:05]} g6 {[%emt 0:00:05]} 7. f4 {[%emt 0:00:03]} Nbd7 {[%emt 0:01:15]} 8. Nf3 {[%emt 0:00:49]} Bg7 {[%emt 0:00:05]} 9. Bd3 {[%emt 0:01:47]} O-O {[%emt 0:00:23]} 10. O-O {[%emt 0:00:06]} Re8 {[%emt 0:00:22]} 11. Re1 {[%emt 0:01:58]} a6 {[%emt 0:01:22]} 12. a4 {[%emt 0:00:53]} Qa5 {[%emt 0:03:03]} 13. Bd2 {[%emt 0:03:20]} Qc7 {[%emt 0:08:24]} 14. Bf1 {[%emt 0:04:40]} Rb8 {[%emt 0:03:06]} 15. Qc2 {[%emt 0:05:08]} Nb6 {[%emt 0:00:55]} 16. h3 {[%emt 0:03:20]} Bd7 {[%emt 0:06:02]} 17. g4 {[%emt 0:14:07]} Kh8 {[%emt 0:07:45]} 18. a5 {[%emt 0:02:25]} Nc8 {[%emt 0:02:12]} 19. Ng5 {[%emt 0:04:11]} Rf8 {[%emt 0:07:31]} 20. e5 {[%emt 0:12:55]} Ng8 {[%emt 0:00:22]} 21. e6 {[%emt 0:07:30]} fxe6 {[%emt 0:00:07]} 22. dxe6 {[%emt 0:00:35]} Bd4+ {[%emt 0:02:28]} 23. Kh2 {[%emt 0:01:11]} Bc6 {[%emt 0:02:24]} 24. Nce4 {[%emt 0:09:51]} Nh6 {[%emt 0:12:11]} 25. Ng3 {[%emt 0:08:18]} Ne7 {[%emt 0:00:55]} 26. Bg2 {[%emt 0:00:53]} Nd5 {[%emt 0:02:00]} 27. Rf1 {[%emt 0:02:39]} Ne3 {[%emt 0:00:47]} 28. Bxe3 {[%emt 0:00:45]} Bxe3 {[%emt 0:00:02]} 29. Qc3+ {[%emt 0:01:47]} Bd4 {[%emt 0:00:08]} 30. Qd2 {[%emt 0:00:02]} Bxg2 {[%emt 0:00:31]} 31. Kxg2 {[%emt 0:00:03]} Qg7 {[%emt 0:06:03]} 32. Rab1 {[%emt 0:02:14]} b5 {[%emt 0:04:19]} 33. Ne2 {[%emt 0:00:51]} Qb7+ {[%emt 0:05:05]} 34. Kg3 {[%emt 0:01:43]} Bg7 {[%emt 0:00:10]} 35. Nc3 {[%emt 0:01:48]} d5 {[%emt 0:03:29]} 36. Qxd5 {[%emt 0:01:10]} Bxc3 {[%emt 0:02:35]} 37. Qxb7 {[%emt 0:00:12]} Rxb7 {[%emt 0:00:02]} 38. bxc3 {[%emt 0:00:09]} Ng8 {[%emt 0:00:20]} 39. Rfe1 {[%emt 0:01:01]} Ne7 {[%emt 0:00:29]} 40. Rbd1 {[%emt 0:00:14]} Kg7 {[%emt 0:02:28]} 41. Rd6 {[%emt 0:03:55]} b4 {[%emt 0:00:20]} 42. cxb4 {[%emt 0:00:32]} Rxb4 {[%emt 0:00:08]} 43. Rd7 {[%emt 0:00:23]} Re8 {[%emt 0:00:21]} 44. Ra7 {[%emt 0:00:47]} h6 {[%emt 0:00:14]} 45. Ne4 {[%emt 0:00:45]} Rb3+ {[%emt 0:00:23]} 46. Kg2 {[%emt 0:00:25]} Rb2+ {[%emt 0:00:16]} 47. Kf3 {[%emt 0:00:27]} Rb3+ {[%emt 0:00:15]} 48. Re3 {[%emt 0:00:46]} Rxe3+ {[%emt 0:00:59]} 49. Kxe3 {[%emt 0:00:02]} 1-0

[Event "Slovakia Chess Open 2024"]
[Site "Modra"]
[Date "2024.03.05"]
[Round "8.7"]
[White "Hasala, Richard"]
[Black "Pietrucha, Jaroslaw"]
[Result "0-1"]
[ECO "D02"]
[WhiteElo "1935"]
[BlackElo "1781"]
[Annotator "RC"]
[PlyCount "66"]
[EventDate "2024.02.29"]
[EventType "swiss"]
[EventCountry "SVK"]
[SourceTitle "playchess.com"]
[Source "ChessBase"]
[SourceQuality "1"]
[TimeControl "5400+30"]

1. d4 {[%emt 0:02:13]} d5 {[%emt 0:04:43]} 2. Nf3 {[%emt 0:00:18]} e6 {[%emt 0:01:02]} 3. e3 {[%emt 0:00:32]} a6 {[%emt 0:01:39]} 4. Bd3 {[%emt 0:00:20]} Nf6 {[%emt 0:00:29]} 5. Ne5 {[%emt 0:01:31]} Nbd7 {[%emt 0:01:20]} 6. f4 {[%emt 0:00:05]} c5 {[%emt 0:01:14]} 7. c3 {[%emt 0:00:09]} Be7 {[%emt 0:02:14]} 8. O-O {[%emt 0:00:11]} Qc7 {[%emt 0:05:06]} 9. g4 {[%emt 0:03:00]} g6 {[%emt 0:01:15]} 10. Nd2 {[%emt 0:07:30]} Nb8 {[%emt 0:02:08]} 11. f5 {[%emt 0:02:15]} exf5 {[%emt 0:02:03]} 12. gxf5 {[%emt 0:00:08]} g5 {[%emt 0:02:01]} 13. e4 {[%emt 0:09:23]} Nc6 {[%emt 0:05:21]} 14. Nxc6 {[%emt 0:00:15]} Qxc6 {[%emt 0:01:40]} 15. e5 {[%emt 0:00:46]} Ne4 {[%emt 0:00:19]} 16. Nxe4 {[%emt 0:00:38]} dxe4 {[%emt 0:01:20]} 17. Bc2 {[%emt 0:00:14]} cxd4 {[%emt 0:04:58]} 18. cxd4 {[%emt 0:00:34]} Bd7 {[%emt 0:02:57]} 19. Be3 {[%emt 0:00:24]} Qb5 {[%emt 0:04:32]} 20. Bb3 {[%emt 0:04:39]} h5 {[%emt 0:05:42]} 21. d5 {[%emt 0:03:05]} Bc5 {[%emt 0:01:03]} 22. Qd2 {[%emt 0:01:20]} Qb6 {[%emt 0:00:39]} 23. Bxc5 {[%emt 0:01:02]} Qxc5+ {[%emt 0:01:28]} 24. Kh1 {[%emt 0:00:11]} e3 {[%emt 0:00:31]} 25. Qg2 {[%emt 0:00:36]} Qd4 {[%emt 0:02:36]} 26. e6 {[%emt 0:04:13]} Bb5 {[%emt 0:05:10]} 27. Rfd1 {[%emt 0:08:59]} Qg4 {[%emt 0:05:12]} 28. Qxg4 {[%emt 0:02:41]} hxg4 {[%emt 0:00:52]} 29. Kg1 {[%emt 0:00:58]} fxe6 {[%emt 0:03:13]} 30. a4 {[%emt 0:03:45]} Rh3 {[%emt 0:09:35]} 31. Rd4 {[%emt 0:14:45]} Be2 {[%emt 0:04:36]} 32. fxe6 {[%emt 0:00:19]} Bf3 {[%emt 0:02:15]} 33. d6 {[%emt 0:09:18]} g3 {[%emt 0:00:54]} 0-1